[Event "FIDE WCCC Girls-10 2024"]
[Site "Montesilvano"]
[Date "2024.11.19"]
[Round "5.27"]
[White "Shtepa, Liubov"]
[Black "Minzat, Victoria"]
[Result "1-0"]
[ECO "C54"]
[WhiteElo "1615"]
[BlackElo "1505"]
[Annotator "NA RC"]
[PlyCount "137"]
[EventDate "2024.11.18"]
[EventType "swiss"]
[EventCountry "ITA"]
[SourceTitle "playchess.com"]
[Source "ChessBase"]
[SourceQuality "1"]
[TimeControl "5400+30"]

1. e4 {[%emt 0:00:02]} e5 {[%emt 0:00:02]} 2. Nf3 {[%emt 0:00:05]} Nc6 {[%emt 0:00:11]} 3. Bc4 {[%emt 0:00:05]} Bc5 {[%emt 0:00:54]} 4. c3 {[%emt 0:00:11]} Nf6 {[%emt 0:00:14]} 5. d4 {[%emt 0:00:03]} exd4 {[%emt 0:00:27]} 6. cxd4 {[%emt 0:00:06]} Bb4+ {[%emt 0:00:13]} 7. Bd2 {[%emt 0:00:05]} Nxe4 {[%emt 0:01:24]} 8. Bxb4 {[%emt 0:00:21]} Nxb4 {[%emt 0:00:28]} 9. Bxf7+ {[%emt 0:00:06]} Kxf7 {[%emt 0:00:27]} 10. Qb3+ {[%emt 0:00:28]} d5 {[%emt 0:01:16]} 11. Ne5+ {[%emt 0:00:08]} Ke8 {[%emt 0:01:47]} 12. Qxb4 {[%emt 0:00:13]} Qe7 {[%emt 0:01:00]} 13. Qb5+ {[%emt 0:05:32]} c6 {[%emt 0:01:58]} 14. Qe2 {[%emt 0:00:14]} Rf8 {[%emt 0:07:16]} 15. O-O {[%emt 0:05:12]} g6 {[%emt 0:03:08]} 16. f3 {[%emt 0:03:04]} Nd6 {[%emt 0:01:15]} 17. Re1 {[%emt 0:03:30]} Nf5 {[%emt 0:01:46]} 18. Qd2 {[%emt 0:06:26]} Be6 {[%emt 0:02:14]} 19. Nc3 {[%emt 0:04:23]} Qb4 {[%emt 0:04:39]} 20. Rad1 {[%emt 0:02:49]} Kd8 {[%emt 0:03:21]} 21. Nxc6+ {[%emt 0:02:05]} bxc6 {[%emt 0:00:25]} 22. Rxe6 {[%emt 0:00:20]} Kd7 {[%emt 0:00:20]} 23. Re2 {[%emt 0:03:29]} Rfe8 {[%emt 0:01:33]} 24. Nxd5 {[%emt 0:10:43]} Qd6 {[%emt 0:01:31]} 25. Nf4 {[%emt 0:01:39]} Kc7 {[%emt 0:01:11]} 26. Rxe8 {[%emt 0:00:48]} Rxe8 {[%emt 0:00:23]} 27. d5 {[%emt 0:01:32]} Ne3 {[%emt 0:04:36]} 28. Qa5+ {[%emt 0:01:01]} Kb8 {[%emt 0:01:21]} 29. Rd4 {[%emt 0:03:46]} Nc2 {[%emt 0:01:21]} 30. Ra4 {[%emt 0:02:08]} Qe7 {[%emt 0:03:14]} 31. Qc3 {[%emt 0:08:30]} Ne3 {[%emt 0:01:14]} 32. Qb4+ {[%emt 0:01:21]} Qxb4 {[%emt 0:00:26]} 33. Rxb4+ {[%emt 0:00:03]} Kc7 {[%emt 0:00:20]} 34. dxc6 {[%emt 0:01:35]} Kxc6 {[%emt 0:00:14]} 35. Kf2 {[%emt 0:00:39]} Kc5 {[%emt 0:00:51]} 36. Nd3+ {[%emt 0:00:19]} Kc6 {[%emt 0:00:18]} 37. Rh4 {[%emt 0:02:25]} h5 {[%emt 0:00:26]} 38. Ra4 {[%emt 0:00:12]} Kb6 {[%emt 0:00:11]} 39. Re4 {[%emt 0:02:50]} Rxe4 {[%emt 0:00:50]} 40. fxe4 {[%emt 0:00:07]} Ng4+ {[%emt 0:00:04]} 41. Kg3 {[%emt 0:00:11]} Kc6 {[%emt 0:00:16]} 42. h3 {[%emt 0:00:37]} Nf6 {[%emt 0:00:19]} 43. e5 {[%emt 0:00:42]} Nh7 {[%emt 0:00:14]} 44. Nf4 {[%emt 0:03:10]} Nf8 {[%emt 0:00:23]} 45. Kh4 {[%emt 0:00:20]} Kd7 {[%emt 0:00:17]} 46. Kg5 {[%emt 0:00:17]} a5 {[%emt 0:00:30]} 47. Kf6 {[%emt 0:00:31]} h4 {[%emt 0:01:34]} 48. e6+ {[%emt 0:00:22]} Ke8 {[%emt 0:00:45]} 49. Nxg6 {[%emt 0:00:07]} Nh7+ {[%emt 0:00:41]} 50. Kf5 {[%emt 0:00:30]} Nf8 {[%emt 0:00:35]} 51. Nxf8 {[%emt 0:00:13]} Kxf8 {[%emt 0:00:04]} 52. Kf6 {[%emt 0:00:07]} a4 {[%emt 0:00:07]} 53. a3 {[%emt 0:00:12]} Ke8 {[%emt 0:00:29]} 54. e7 {[%emt 0:00:06]} Kd7 {[%emt 0:00:10]} 55. Kf7 {[%emt 0:00:03]} Kd6 {[%emt 0:00:09]} 56. e8=Q {[%emt 0:00:11]} Kd5 {[%emt 0:00:08]} 57. Qe3 {[%emt 0:00:12]} Kc4 {[%emt 0:00:15]} 58. Qc3+ {[%emt 0:00:27]} Kd5 {[%emt 0:00:13]} 59. Kf6 {[%emt 0:00:13]} Ke4 {[%emt 0:00:08]} 60. Kg5 {[%emt 0:00:16]} Kd5 {[%emt 0:00:14]} 61. Kf5 {[%emt 0:00:12]} Kd6 {[%emt 0:00:12]} 62. Qe5+ {[%emt 0:00:15]} Kc6 {[%emt 0:00:11]} 63. Ke6 {[%emt 0:00:13]} Kb6 {[%emt 0:00:11]} 64. Qd5 {[%emt 0:00:18]} Kc7 {[%emt 0:00:12]} 65. Qd6+ {[%emt 0:00:11]} Kb7 {[%emt 0:00:11]} 66. Kd7 {[%emt 0:02:11]} Ka8 {[%emt 0:00:17]} 67. Qb4 {[%emt 0:00:05]} Ka7 {[%emt 0:00:10]} 68. Kc7 {[%emt 0:00:15]} Ka6 {[%emt 0:00:06]} 69. Qb6# {[%emt 0:00:43]} 1-0

[Event "FIDE WCCC Girls-10 2024"]
[Site "Montesilvano"]
[Date "2024.11.19"]
[Round "5.28"]
[White "Pambieri, Nicole"]
[Black "Rekhviashvili, Mariam"]
[Result "0-1"]
[ECO "D37"]
[WhiteElo "1482"]
[BlackElo "1610"]
[Annotator "NA RC"]
[PlyCount "90"]
[EventDate "2024.11.18"]
[EventType "swiss"]
[EventCountry "ITA"]
[SourceTitle "playchess.com"]
[Source "ChessBase"]
[SourceQuality "1"]
[TimeControl "5400+30"]

1. c4 {[%emt 0:00:02]} e6 {[%emt 0:00:15]} 2. Nf3 {[%emt 0:00:12]} d5 {[%emt 0:00:12]} 3. e3 {[%emt 0:00:14]} Nf6 {[%emt 0:00:15]} 4. Nc3 {[%emt 0:00:20]} Be7 {[%emt 0:00:20]} 5. Be2 {[%emt 0:00:11]} O-O {[%emt 0:00:10]} 6. O-O {[%emt 0:00:04]} c5 {[%emt 0:00:23]} 7. d4 {[%emt 0:01:06]} dxc4 {[%emt 0:06:50]} 8. Bxc4 {[%emt 0:00:42]} Nbd7 {[%emt 0:01:20]} 9. b3 {[%emt 0:07:32]} b6 {[%emt 0:01:26]} 10. d5 {[%emt 0:03:07]} exd5 {[%emt 0:03:52]} 11. Nxd5 {[%emt 0:00:46]} Bb7 {[%emt 0:00:36]} 12. Nxe7+ {[%emt 0:00:27]} Qxe7 {[%emt 0:00:06]} 13. Bb2 {[%emt 0:00:32]} Rad8 {[%emt 0:02:36]} 14. Qe2 {[%emt 0:00:58]} Ne4 {[%emt 0:04:29]} 15. Rfd1 {[%emt 0:07:33]} Ng5 {[%emt 0:28:26]} 16. Bd5 {[%emt 0:05:30]} Bxd5 {[%emt 0:14:24]} 17. Rxd5 {[%emt 0:00:10]} Nxf3+ {[%emt 0:06:14]} 18. Qxf3 {[%emt 0:00:30]} Qe6 {[%emt 0:01:02]} 19. Rad1 {[%emt 0:02:31]} Qe7 {[%emt 0:08:32]} 20. Qg4 {[%emt 0:02:07]} Nf6 {[%emt 0:01:34]} 21. Qg3 {[%emt 0:01:39]} Rxd5 {[%emt 0:01:14]} 22. Rxd5 {[%emt 0:00:16]} Qe4 {[%emt 0:06:40]} 23. Rd1 {[%emt 0:29:53]} Qc2 {[%emt 0:00:48]} 24. Qd6 {[%emt 0:00:57]} Qxb2 {[%emt 0:00:37]} 25. Rd2 {[%emt 0:02:08]} Qb1+ {[%emt 0:00:26]} 26. Rd1 {[%emt 0:00:16]} Qxa2 {[%emt 0:00:19]} 27. b4 {[%emt 0:01:19]} cxb4 {[%emt 0:00:36]} 28. Qxb4 {[%emt 0:00:13]} Qc2 {[%emt 0:00:24]} 29. Qd4 {[%emt 0:00:32]} h6 {[%emt 0:00:37]} 30. Rd2 {[%emt 0:00:36]} Qe4 {[%emt 0:00:27]} 31. Qa1 {[%emt 0:00:26]} a5 {[%emt 0:00:23]} 32. Rd4 {[%emt 0:01:16]} Qc6 {[%emt 0:00:21]} 33. f3 {[%emt 0:00:51]} Rc8 {[%emt 0:00:15]} 34. Rd1 {[%emt 0:00:40]} Qc3 {[%emt 0:00:26]} 35. Qb1 {[%emt 0:01:15]} Qxe3+ {[%emt 0:00:15]} 36. Kh1 {[%emt 0:00:09]} g6 {[%emt 0:00:41]} 37. Qb2 {[%emt 0:00:37]} Kg7 {[%emt 0:01:00]} 38. h3 {[%emt 0:00:53]} Re8 {[%emt 0:02:23]} 39. Rc1 {[%emt 0:03:27]} Qe6 {[%emt 0:01:26]} 40. Ra1 {[%emt 0:00:56]} Kh7 {[%emt 0:00:51]} 41. Qd2 {[%emt 0:01:20]} Nh5 {[%emt 0:00:52]} 42. Kh2 {[%emt 0:03:14]} Qe5+ {[%emt 0:00:14]} 43. Kg1 {[%emt 0:00:18]} Qxa1+ {[%emt 0:00:05]} 44. Kh2 {[%emt 0:00:19]} Qe5+ {[%emt 0:00:14]} 45. Kh1 {[%emt 0:00:25]} Qg3 {[%emt 0:00:25]} 0-1

[Event "FIDE WCCC Girls-10 2024"]
[Site "Montesilvano"]
[Date "2024.11.19"]
[Round "5.29"]
[White "Xin, Lisa J."]
[Black "Sobirova, Mumtozbegim"]
[Result "0-1"]
[ECO "D05"]
[WhiteElo "1602"]
[BlackElo "1476"]
[Annotator "NA RC"]
[PlyCount "91"]
[EventDate "2024.11.18"]
[EventType "swiss"]
[EventCountry "ITA"]
[SourceTitle "playchess.com"]
[Source "ChessBase"]
[SourceQuality "1"]
[TimeControl "5400+30"]

1. d4 {[%emt 0:00:03]} d5 {[%emt 0:00:19]} 2. Nf3 {[%emt 0:00:16]} Nf6 {[%emt 0:00:27]} 3. e3 {[%emt 0:00:11]} e6 {[%emt 0:00:18]} 4. Bd3 {[%emt 0:00:08]} c5 {[%emt 0:00:52]} 5. b3 {[%emt 0:00:12]} Nc6 {[%emt 0:00:51]} 6. Bb2 {[%emt 0:00:13]} Bd6 {[%emt 0:00:48]} 7. O-O {[%emt 0:00:38]} O-O {[%emt 0:00:58]} 8. Nbd2 {[%emt 0:00:21]} Qc7 {[%emt 0:02:59]} 9. a3 {[%emt 0:00:39]} cxd4 {[%emt 0:01:32]} 10. exd4 {[%emt 0:00:17]} a6 {[%emt 0:01:15]} 11. Qe2 {[%emt 0:01:44]} Re8 {[%emt 0:01:17]} 12. Ne5 {[%emt 0:00:39]} b5 {[%emt 0:07:33]} 13. f4 {[%emt 0:05:07]} b4 {[%emt 0:02:21]} 14. a4 {[%emt 0:02:04]} Ne7 {[%emt 0:05:19]} 15. g4 {[%emt 0:17:49]} Ng6 {[%emt 0:07:58]} 16. g5 {[%emt 0:07:44]} Nd7 {[%emt 0:01:35]} 17. Qg4 {[%emt 0:11:49]} f5 {[%emt 0:15:21]} 18. gxf6 {[%emt 0:03:35]} Nxf6 {[%emt 0:00:30]} 19. Qg2 {[%emt 0:14:33]} Nh4 {[%emt 0:02:49]} 20. Qg5 {[%emt 0:02:48]} Nf5 {[%emt 0:00:36]} 21. Rf2 {[%emt 0:03:38]} Rb8 {[%emt 0:09:07]} 22. Re1 {[%emt 0:03:05]} h6 {[%emt 0:10:10]} 23. Qg6 {[%emt 0:04:06]} Nh4 {[%emt 0:00:47]} 24. Qg3 {[%emt 0:00:28]} Nf5 {[%emt 0:00:16]} 25. Bxf5 {[%emt 0:01:13]} exf5 {[%emt 0:00:28]} 26. Rg2 {[%emt 0:01:17]} Ne4 {[%emt 0:01:54]} 27. Nxe4 {[%emt 0:00:36]} dxe4 {[%emt 0:01:26]} 28. d5 {[%emt 0:05:05]} g5 {[%emt 0:04:42]} 29. Qh3 {[%emt 0:04:31]} g4 {[%emt 0:02:08]} 30. Qxh6 {[%emt 0:00:29]} Qb6+ {[%emt 0:01:07]} 31. Kh1 {[%emt 0:00:41]} Bxe5 {[%emt 0:01:10]} 32. Qxb6 {[%emt 0:00:12]} Rxb6 {[%emt 0:00:14]} 33. Bxe5 {[%emt 0:01:32]} Bb7 {[%emt 0:01:05]} 34. Rd1 {[%emt 0:01:40]} Rg6 {[%emt 0:01:24]} 35. Kg1 {[%emt 0:01:11]} Rd8 {[%emt 0:01:17]} 36. d6 {[%emt 0:01:10]} e3 {[%emt 0:00:34]} 37. Rg3 {[%emt 0:01:33]} e2 {[%emt 0:00:46]} 38. Rc1 {[%emt 0:00:59]} Bf3 {[%emt 0:01:01]} 39. Kf2 {[%emt 0:00:46]} Rc8 {[%emt 0:03:07]} 40. c4 {[%emt 0:01:38]} bxc3 {[%emt 0:01:28]} 41. Rxc3 {[%emt 0:00:10]} Rxc3 {[%emt 0:00:36]} 42. Bxc3 {[%emt 0:00:09]} Rxd6 {[%emt 0:00:13]} 43. b4 {[%emt 0:01:11]} Rd3 {[%emt 0:00:46]} 44. Be5 {[%emt 0:01:24]} Rd1 {[%emt 0:00:21]} 45. Rg1 {[%emt 0:00:23]} Rxg1 {[%emt 0:00:14]} 46. Kxg1 {[%emt 0:00:20]} 0-1

[Event "FIDE WCCC Girls-10 2024"]
[Site "Montesilvano"]
[Date "2024.11.19"]
[Round "5.31"]
[White "Mamarasulova, Yasmina"]
[Black "Macchia-Shahar, Yali"]
[Result "0-1"]
[ECO "D35"]
[WhiteElo "1444"]
[BlackElo "1564"]
[Annotator "NA RC"]
[PlyCount "44"]
[EventDate "2024.11.18"]
[EventType "swiss"]
[EventCountry "ITA"]
[SourceTitle "playchess.com"]
[Source "ChessBase"]
[SourceQuality "1"]
[TimeControl "5400+30"]

1. d4 {[%emt 0:00:05]} d5 {[%emt 0:00:09]} 2. c4 {[%emt 0:00:05]} e6 {[%emt 0:00:11]} 3. Nc3 {[%emt 0:00:06]} Nf6 {[%emt 0:00:17]} 4. cxd5 {[%emt 0:00:04]} exd5 {[%emt 0:00:23]} 5. Bg5 {[%emt 0:00:18]} Be7 {[%emt 0:01:50]} 6. e3 {[%emt 0:00:44]} c6 {[%emt 0:03:18]} 7. Bd3 {[%emt 0:01:29]} O-O {[%emt 0:01:04]} 8. Nf3 {[%emt 0:01:31]} h6 {[%emt 0:00:56]} 9. Bh4 {[%emt 0:09:34]} Re8 {[%emt 0:01:01]} 10. O-O {[%emt 0:03:04]} Ne4 {[%emt 0:01:51]} 11. Bxe7 {[%emt 0:09:20]} Qxe7 {[%emt 0:00:41]} 12. Bxe4 {[%emt 0:12:57]} dxe4 {[%emt 0:00:45]} 13. Nd2 {[%emt 0:00:23]} Bf5 {[%emt 0:02:56]} 14. Qc2 {[%emt 0:04:50]} Qe6 {[%emt 0:07:10]} 15. Qb3 {[%emt 0:01:17]} Qg6 {[%emt 0:03:58]} 16. Qxb7 {[%emt 0:03:25]} Bh3 {[%emt 0:04:48]} 17. g3 {[%emt 0:00:21]} Nd7 {[%emt 0:00:25]} 18. Rfc1 {[%emt 0:07:31]} Rab8 {[%emt 0:10:50]} 19. Qxa7 {[%emt 0:10:32]} Rxb2 {[%emt 0:02:47]} 20. Nc4 {[%emt 0:06:31]} Qf5 {[%emt 0:04:39]} 21. f4 {[%emt 0:13:30]} exf3 {[%emt 0:00:25]} 22. Qxd7 {[%emt 0:00:31]} f2+ {[%emt 0:51:06]} 0-1

[Event "FIDE WCCC Girls-10 2024"]
[Site "Montesilvano"]
[Date "2024.11.19"]
[Round "5.32"]
[White "Wang, Mi Ya Mia"]
[Black "Li, Grace"]
[Result "1-0"]
[ECO "C54"]
[WhiteElo "1552"]
[BlackElo "1529"]
[Annotator "NA RC"]
[PlyCount "69"]
[EventDate "2024.11.18"]
[EventType "swiss"]
[EventCountry "ITA"]
[SourceTitle "playchess.com"]
[Source "ChessBase"]
[SourceQuality "1"]
[TimeControl "5400+30"]

1. e4 {[%emt 0:00:01]} e5 {[%emt 0:00:09]} 2. Nf3 {[%emt 0:00:06]} Nc6 {[%emt 0:00:13]} 3. Bc4 {[%emt 0:00:14]} Bc5 {[%emt 0:00:13]} 4. c3 {[%emt 0:00:22]} Nf6 {[%emt 0:00:19]} 5. d3 {[%emt 0:00:33]} d5 {[%emt 0:00:56]} 6. exd5 {[%emt 0:00:34]} Nxd5 {[%emt 0:00:33]} 7. Qb3 {[%emt 0:00:58]} Be6 {[%emt 0:02:28]} 8. Qxb7 {[%emt 0:01:05]} Nde7 {[%emt 0:03:04]} 9. Bxe6 {[%emt 0:01:57]} fxe6 {[%emt 0:00:20]} 10. Qb5 {[%emt 0:01:25]} Bd6 {[%emt 0:01:47]} 11. Qc4 {[%emt 0:02:38]} Qd7 {[%emt 0:01:41]} 12. O-O {[%emt 0:01:50]} O-O {[%emt 0:01:12]} 13. Nbd2 {[%emt 0:02:21]} Rf6 {[%emt 0:02:35]} 14. Ne4 {[%emt 0:03:23]} Rg6 {[%emt 0:01:43]} 15. h3 {[%emt 0:06:19]} a6 {[%emt 0:03:27]} 16. b4 {[%emt 0:04:12]} Nf5 {[%emt 0:01:57]} 17. Re1 {[%emt 0:07:55]} Ra7 {[%emt 0:12:54]} 18. Nc5 {[%emt 0:07:58]} Bxc5 {[%emt 0:01:35]} 19. Qxc5 {[%emt 0:00:27]} Qd5 {[%emt 0:00:50]} 20. Qxd5 {[%emt 0:00:45]} exd5 {[%emt 0:00:18]} 21. Nxe5 {[%emt 0:01:57]} Re6 {[%emt 0:00:54]} 22. Bf4 {[%emt 0:00:52]} Nh4 {[%emt 0:03:21]} 23. Nd7 {[%emt 0:08:03]} Rg6 {[%emt 0:02:04]} 24. Bg3 {[%emt 0:01:27]} Nf5 {[%emt 0:00:29]} 25. Re8+ {[%emt 0:01:05]} Kf7 {[%emt 0:00:45]} 26. Rae1 {[%emt 0:00:52]} Rg5 {[%emt 0:01:30]} 27. h4 {[%emt 0:03:10]} Rg4 {[%emt 0:03:08]} 28. Rf8+ {[%emt 0:00:31]} Kg6 {[%emt 0:01:14]} 29. Re6+ {[%emt 0:00:17]} Kh5 {[%emt 0:01:04]} 30. Rxf5+ {[%emt 0:00:15]} g5 {[%emt 0:00:25]} 31. Rxc6 {[%emt 0:02:56]} Ra8 {[%emt 0:00:44]} 32. Kh2 {[%emt 0:01:52]} Re8 {[%emt 0:01:53]} 33. f3 {[%emt 0:01:08]} Rxg3 {[%emt 0:01:04]} 34. Kxg3 {[%emt 0:00:17]} Re3 {[%emt 0:00:58]} 35. Rxg5# {[%emt 0:00:47]} 1-0

[Event "FIDE WCCC Girls-10 2024"]
[Site "Montesilvano"]
[Date "2024.11.19"]
[Round "5.33"]
[White "Muradli, Sabira"]
[Black "Trzcinska, Weronika"]
[Result "0-1"]
[ECO "C54"]
[WhiteElo "1430"]
[BlackElo "1653"]
[Annotator "NA RC"]
[PlyCount "110"]
[EventDate "2024.11.18"]
[EventType "swiss"]
[EventCountry "ITA"]
[SourceTitle "playchess.com"]
[Source "ChessBase"]
[SourceQuality "1"]
[TimeControl "5400+30"]

1. e4 {[%emt 0:00:02]} e5 {[%emt 0:00:09]} 2. Nf3 {[%emt 0:00:04]} Nc6 {[%emt 0:00:41]} 3. Bc4 {[%emt 0:00:04]} Bc5 {[%emt 0:01:01]} 4. c3 {[%emt 0:00:05]} Nf6 {[%emt 0:01:49]} 5. d4 {[%emt 0:00:09]} exd4 {[%emt 0:01:38]} 6. cxd4 {[%emt 0:00:04]} Bb4+ {[%emt 0:00:45]} 7. Nc3 {[%emt 0:00:14]} Bxc3+ {[%emt 0:01:15]} 8. bxc3 {[%emt 0:00:06]} Nxe4 {[%emt 0:01:48]} 9. O-O {[%emt 0:02:31]} O-O {[%emt 0:00:39]} 10. Qd3 {[%emt 0:05:33]} d5 {[%emt 0:03:47]} 11. Bb3 {[%emt 0:01:19]} Bf5 {[%emt 0:01:55]} 12. Qe3 {[%emt 0:01:53]} Na5 {[%emt 0:03:59]} 13. Qf4 {[%emt 0:05:20]} Nxb3 {[%emt 0:09:56]} 14. axb3 {[%emt 0:00:10]} Bg6 {[%emt 0:00:22]} 15. Bb2 {[%emt 0:01:21]} Qd6 {[%emt 0:01:57]} 16. Qxd6 {[%emt 0:03:17]} Nxd6 {[%emt 0:00:16]} 17. Ba3 {[%emt 0:00:13]} Rfd8 {[%emt 0:00:34]} 18. Bxd6 {[%emt 0:00:18]} Rxd6 {[%emt 0:00:09]} 19. Ne5 {[%emt 0:00:11]} f6 {[%emt 0:00:26]} 20. Nxg6 {[%emt 0:00:12]} hxg6 {[%emt 0:00:20]} 21. Rfe1 {[%emt 0:00:10]} Kf7 {[%emt 0:01:16]} 22. g3 {[%emt 0:00:06]} a6 {[%emt 0:00:15]} 23. Re2 {[%emt 0:02:47]} Re8 {[%emt 0:00:58]} 24. Rxe8 {[%emt 0:03:35]} Kxe8 {[%emt 0:00:06]} 25. Re1+ {[%emt 0:00:09]} Kd7 {[%emt 0:00:17]} 26. Kg2 {[%emt 0:02:33]} Re6 {[%emt 0:00:39]} 27. Rd1 {[%emt 0:01:45]} Re2 {[%emt 0:01:04]} 28. Rd3 {[%emt 0:01:49]} Rb2 {[%emt 0:01:41]} 29. c4 {[%emt 0:01:54]} dxc4 {[%emt 0:00:38]} 30. bxc4 {[%emt 1:07:36]} Rb4 {[%emt 0:00:36]} 31. c5 {[%emt 0:00:00]} b6 {[%emt 0:00:44]} 32. f4 {[%emt 0:00:00]} Kc6 {[%emt 0:00:34]} 33. Kf3 {[%emt 0:00:00]} a5 {[%emt 0:00:51]} 34. cxb6 {[%emt 0:00:00]} cxb6 {[%emt 0:00:11]} 35. Re3 {[%emt 0:00:00]} Rxd4 {[%emt 0:00:28]} 36. Re6+ {[%emt 0:00:00]} Rd6 {[%emt 0:00:47]} 37. Re7 {[%emt 0:00:00]} Rd7 {[%emt 0:00:09]} 38. Re6+ {[%emt 0:00:00]} Kb5 {[%emt 0:00:04]} 39. Re4 {[%emt 0:00:00]} a4 {[%emt 0:00:28]} 40. Re1 {[%emt 0:00:00]} a3 {[%emt 0:00:11]} 41. Rb1+ {[%emt 0:00:00]} Kc5 {[%emt 0:00:51]} 42. g4 {[%emt 0:00:00]} b5 {[%emt 0:00:26]} 43. h4 {[%emt 0:00:00]} b4 {[%emt 0:00:43]} 44. Rc1+ {[%emt 0:00:00]} Kb5 {[%emt 0:00:16]} 45. f5 {[%emt 0:00:00]} gxf5 {[%emt 0:00:15]} 46. gxf5 {[%emt 0:00:00]} a2 {[%emt 0:00:11]} 47. Kg4 {[%emt 0:00:00]} Ra7 {[%emt 0:00:31]} 48. Ra1 {[%emt 0:00:00]} b3 {[%emt 0:00:23]} 49. Kh5 {[%emt 0:00:00]} b2 {[%emt 0:00:13]} 50. Rd1 {[%emt 0:00:00]} b1=Q {[%emt 0:00:14]} 51. Rxb1+ {[%emt 0:00:00]} axb1=Q {[%emt 0:00:14]} 52. Kg6 {[%emt 0:00:00]} Qg1+ {[%emt 0:00:39]} 53. Kh5 {[%emt 0:00:00]} g6+ {[%emt 0:00:59]} 54. fxg6 {[%emt 0:00:00]} Rg7 {[%emt 0:00:06]} 55. Kh6 {[%emt 0:00:00]} Qxg6# {[%emt 0:00:12]} 0-1

[Event "FIDE WCCC Girls-10 2024"]
[Site "Montesilvano"]
[Date "2024.11.19"]
[Round "5.34"]
[White "Abibulla, Inzhu"]
[Black "Billod-Laillet, Camille"]
[Result "1-0"]
[ECO "C56"]
[WhiteElo "1499"]
[BlackElo "1732"]
[Annotator "NA RC"]
[PlyCount "123"]
[EventDate "2024.11.18"]
[EventType "swiss"]
[EventCountry "ITA"]
[SourceTitle "playchess.com"]
[Source "ChessBase"]
[SourceQuality "1"]
[TimeControl "5400+30"]

1. e4 {[%emt 0:00:03]} e5 {[%emt 0:00:14]} 2. Nf3 {[%emt 0:00:08]} Nc6 {[%emt 0:00:09]} 3. Bc4 {[%emt 0:00:12]} Nf6 {[%emt 0:00:11]} 4. d4 {[%emt 0:00:53]} exd4 {[%emt 0:00:12]} 5. O-O {[%emt 0:00:20]} Nxe4 {[%emt 0:01:11]} 6. Re1 {[%emt 0:00:20]} d5 {[%emt 0:00:27]} 7. Bxd5 {[%emt 0:00:12]} Qxd5 {[%emt 0:00:18]} 8. Nc3 {[%emt 0:00:11]} Qh5 {[%emt 0:00:46]} 9. Nxe4 {[%emt 0:00:36]} Be6 {[%emt 0:03:14]} 10. Neg5 {[%emt 0:02:25]} O-O-O {[%emt 0:02:54]} 11. Nxe6 {[%emt 0:00:38]} fxe6 {[%emt 0:01:12]} 12. Rxe6 {[%emt 0:00:30]} Bd6 {[%emt 0:03:14]} 13. h3 {[%emt 0:03:35]} h6 {[%emt 0:14:35]} 14. Re4 Rde8 {[%emt 0:10:49]} 15. Rxe8+ {[%emt 0:08:43]} Rxe8 {[%emt 0:01:13]} 16. b3 {[%emt 0:00:41]} Re6 {[%emt 0:17:29]} 17. Bb2 Bb4 {[%emt 0:08:11]} 18. a3 {[%emt 0:10:42]} Bc5 {[%emt 0:03:44]} 19. b4 {[%emt 0:01:37]} Bb6 {[%emt 0:03:32]} 20. Qd2 {[%emt 0:05:37]} Rg6 {[%emt 0:04:17]} 21. Kh1 {[%emt 0:01:12]} Rd6 {[%emt 0:10:21]} 22. Re1 {[%emt 0:03:14]} Re6 {[%emt 0:00:00]} 23. Ra1 {[%emt 0:00:00]} Rd6 {[%emt 0:01:00]} 24. Re1 Qf7 {[%emt 0:02:00]} 25. Qe2 {[%emt 0:04:36]} Rd7 {[%emt 0:03:29]} 26. Qd3 {[%emt 0:02:10]} Re7 {[%emt 0:01:42]} 27. Rxe7 {[%emt 0:00:36]} Qxe7 {[%emt 0:00:35]} 28. Qf5+ {[%emt 0:02:59]} Qd7 {[%emt 0:02:28]} 29. Qxd7+ {[%emt 0:00:28]} Kxd7 {[%emt 0:00:15]} 30. b5 {[%emt 0:00:20]} Na5 {[%emt 0:00:35]} 31. Bxd4 {[%emt 0:01:02]} Bxd4 {[%emt 0:01:02]} 32. Nxd4 {[%emt 0:00:06]} g6 {[%emt 0:00:35]} 33. c3 {[%emt 0:00:31]} Nc4 {[%emt 0:00:21]} 34. Nc2 {[%emt 0:00:09]} Kd6 {[%emt 0:00:22]} 35. a4 {[%emt 0:02:48]} Nb2 {[%emt 0:00:48]} 36. a5 {[%emt 0:00:28]} Nc4 {[%emt 0:00:26]} 37. a6 {[%emt 0:00:36]} b6 {[%emt 0:00:34]} 38. Nd4 {[%emt 0:00:23]} Na5 {[%emt 0:00:39]} 39. f4 {[%emt 0:00:50]} c5 {[%emt 0:01:47]} 40. bxc6 {[%emt 0:00:46]} Nxc6 {[%emt 0:00:16]} 41. Nxc6 {[%emt 0:00:07]} Kxc6 {[%emt 0:00:12]} 42. g4 {[%emt 0:00:07]} Kd5 {[%emt 0:01:08]} 43. Kg2 {[%emt 0:00:17]} g5 {[%emt 0:01:33]} 44. f5 {[%emt 0:00:34]} Kd6 {[%emt 0:00:21]} 45. Kf3 {[%emt 0:00:32]} Ke5 {[%emt 0:00:44]} 46. Ke3 {[%emt 0:00:47]} b5 {[%emt 0:01:03]} 47. Kd3 {[%emt 0:00:13]} Kd5 {[%emt 0:00:14]} 48. f6 {[%emt 0:00:47]} Ke6 {[%emt 0:00:13]} 49. Kd4 {[%emt 0:00:23]} Kxf6 {[%emt 0:00:36]} 50. Kc5 {[%emt 0:00:08]} Ke7 {[%emt 0:00:38]} 51. Kxb5 {[%emt 0:00:07]} Kd6 {[%emt 0:00:25]} 52. c4 {[%emt 0:00:17]} Kd7 {[%emt 0:01:00]} 53. Kc5 {[%emt 0:00:17]} Kc7 {[%emt 0:00:29]} 54. Kd5 {[%emt 0:00:11]} Kd7 {[%emt 0:00:34]} 55. c5 {[%emt 0:00:11]} Kc7 {[%emt 0:00:10]} 56. c6 {[%emt 0:00:12]} Kd8 {[%emt 0:00:45]} 57. Kd6 {[%emt 0:01:06]} Kc8 {[%emt 0:00:07]} 58. c7 {[%emt 0:00:34]} h5 {[%emt 0:00:05]} 59. gxh5 {[%emt 0:00:12]} g4 {[%emt 0:00:14]} 60. h6 {[%emt 0:00:04]} gxh3 {[%emt 0:00:19]} 61. h7 {[%emt 0:00:08]} h2 {[%emt 0:00:15]} 62. h8=R# {[%emt 0:00:09]} 1-0

[Event "FIDE WCCC Girls-10 2024"]
[Site "Montesilvano"]
[Date "2024.11.19"]
[Round "5.35"]
[White "Camacho Chavez, Nirvana"]
[Black "Foong, Livia"]
[Result "0-1"]
[ECO "C01"]
[WhiteElo "1638"]
[BlackElo "1461"]
[Annotator "NA RC"]
[PlyCount "60"]
[EventDate "2024.11.18"]
[EventType "swiss"]
[EventCountry "ITA"]
[SourceTitle "playchess.com"]
[Source "ChessBase"]
[SourceQuality "1"]
[TimeControl "5400+30"]

1. e4 {[%emt 0:00:09]} e6 {[%emt 0:00:08]} 2. d4 {[%emt 0:00:01]} d5 {[%emt 0:00:05]} 3. exd5 {[%emt 0:00:31]} exd5 {[%emt 0:00:08]} 4. Bd3 {[%emt 0:00:08]} Nf6 {[%emt 0:00:08]} 5. h3 {[%emt 0:00:26]} c5 {[%emt 0:00:11]} 6. Be3 {[%emt 1:32:15]} Qb6 {[%emt 0:00:31]} 7. dxc5 {[%emt 0:00:00]} Bxc5 {[%emt 0:00:17]} 8. Bxc5 {[%emt 0:00:00]} Qxc5 {[%emt 0:00:07]} 9. Nc3 {[%emt 0:00:00]} O-O {[%emt 0:00:12]} 10. Nge2 {[%emt 0:00:00]} Be6 {[%emt 0:00:12]} 11. O-O {[%emt 0:00:00]} Nc6 {[%emt 0:00:13]} 12. Re1 {[%emt 0:00:00]} Rfd8 {[%emt 0:00:18]} 13. Nf4 {[%emt 0:00:00]} Qd6 {[%emt 0:01:07]} 14. Nxe6 {[%emt 0:00:00]} fxe6 {[%emt 0:00:23]} 15. Nb5 {[%emt 0:00:00]} Qd7 {[%emt 0:01:02]} 16. Nc3 {[%emt 0:00:00]} d4 {[%emt 0:00:54]} 17. Ne4 {[%emt 0:00:00]} Nxe4 {[%emt 0:00:25]} 18. Bxe4 {[%emt 0:00:00]} e5 {[%emt 0:00:40]} 19. Bxc6 {[%emt 0:00:00]} Qxc6 {[%emt 0:00:22]} 20. Rxe5 {[%emt 0:00:00]} Rd6 {[%emt 0:00:15]} 21. Rg5 {[%emt 0:00:00]} Rc8 {[%emt 0:01:27]} 22. Rc1 {[%emt 0:00:00]} d3 {[%emt 0:00:42]} 23. c3 {[%emt 0:00:00]} Re8 {[%emt 0:01:07]} 24. Qb3+ {[%emt 0:00:00]} Kh8 {[%emt 0:00:27]} 25. Rd1 {[%emt 0:00:00]} d2 {[%emt 0:00:34]} 26. Kh2 {[%emt 0:00:00]} Qc7 {[%emt 0:01:41]} 27. Rb5 {[%emt 0:00:00]} Rf6+ {[%emt 0:01:52]} 28. g3 {[%emt 0:00:00]} Rxf2+ {[%emt 0:01:32]} 29. Kg1 {[%emt 0:00:00]} Qxg3+ {[%emt 0:00:23]} 30. Kh1 {[%emt 0:00:00]} Qg2# {[%emt 0:00:18]} 0-1